Cogmind - Beta 14 @@@ ROGUE MODE // 2025.01.19 @ 22:29:52 Player: Lorraine Result: Destroyed by G-47 Trooper with Particle Gun Performance ------------- Evolutions (2) 1000 Regions Visited (3) 600 Robots Destroyed (6) 30 Value Destroyed (145) 145 Prototype IDs (0) 0 Alien Tech Used (0) 0 Bonus (0) 0 TOTAL SCORE: 1775 Bonus ------- None Cogmind --------- Core Integrity 0/550 Matter 249/300 Energy 5/100 System Corruption 1% Temperature Cool (37) Movement Walking (120) Location -8/Materials Parts ------- > --- POWER (2) -------- (None) > --- PROPULSION (4) --- Aluminum Leg > --- UTILITY (3) ------ (None) > --- WEAPON (2) ------- Heavy Particle Cannon > --- INVENTORY (5) ---- Huge Storage Unit Trap Scanner Scrap Shield Fragment (49) Scrap Shield Fragment (45) Scrap Shield Fragment (41) Peak State ------------ > --- POWER ------------ Light Ion Engine > --- PROPULSION ------- Light Treads Light Treads > --- UTILITY ---------- Scrap Shield > --- WEAPON ----------- Assault Rifle Light Assault Rifle > --- INVENTORY -------- Large Storage Unit Huge Storage Unit EM Pulse Gun [Rating: 9] Favorites ----------- Power Light Ion Engine Engine Light Ion Engine Propulsion Light Treads Treads Light Treads Utility Large Storage Unit Device Trap Scanner Storage Large Storage Unit Protection Scrap Shield Weapon Assault Rifle Energy Gun EM Pulse Gun Energy Cannon Heavy Particle Cannon Ballistic Gun Assault Rifle Slashing Weapon Axe Build | -11 -10 -10 -8 ------- Run | Yrd Mat Sub Mat Slots Evolved 4 | . . . 4 Power 1 | . . . 1 Propulsion 2 | . . . 2 Utility 1 | . . . 1 Weapon . | . . . . Parts Attached 17 | 6 4 1 6 Power 2 | 1 . . 1 Engine 2 | 1 . . 1 Core . | . . . . Reactor . | . . . . Propulsion 3 | 2 . . 1 Treads 2 | 2 . . . Leg 1 | . . . 1 Wheel . | . . . . Hover . | . . . . Flight . | . . . . Utility 6 | 1 3 1 1 Device 1 | . . . 1 Storage 4 | 1 3 . . Processor . | . . . . Hackware . | . . . . Protection 1 | . . 1 . Artifact . | . . . . Weapon 6 | 2 1 . 3 Energy Gun 2 | 1 . . 1 Energy Cannon 1 | . . . 1 Ballistic Gun 2 | 1 1 . . Ballistic Cannon . | . . . . Launcher . | . . . . Special Weapon . | . . . . Impact Weapon . | . . . . Slashing Weapon 1 | . . . 1 Piercing Weapon . | . . . . Special Melee Weapon . | . . . . Unidentified Prototypes . | . . . . Corrupted Parts 1 | . . . 1 System Corruption 1 | . . . 1 Parts Lost 10 | . 1 6 3 Power 2 | . . 1 1 Propulsion 2 | . . 2 . Utility 1 | . . 1 . Weapon 5 | . 1 2 2 Highest Loss Streak 6 | . 1 6 3 To Critical Strikes . | . . . . Average Slot Usage (%) 69 | . 79 84 13 Engine 11 | . 14 13 2 Treads 23 | . 28 28 . Storage 5 | . 8 1 . Protection 3 | . . 12 . Energy Gun 3 | . 5 . 5 Ballistic Gun 20 | . 22 28 . Peak Build Rating 9 | 6 6 9 7 Average Rating 5 | 2 5 8 3 On Entrance 3 | . 6 6 . Naked Turns 9 | . . 1 8 Heaviest Build 87 | 12 87 26 10 Greatest Support 40 | 40 40 40 3 Greatest Overweight (x) 3 | 1 2 . 3 Average Overweight (x) . | . . . . Largest Inventory Capacity 25 | 8 25 15 5 Average Capacity 9 | 5 12 6 5 Most Carried 5 | 5 3 5 5 Average Carried 2 | 2 1 4 4 Final Capacity 15 | 8 15 5 5 Final Carried 5 | 1 2 5 5 Class Distribution -------------------- 100% | Mutant Dominant Class ---------------- Mutant | -10/Materials Mutant | -10/Subcaves Mutant | -8/Materials Resources | -11 -10 -10 -8 ----------- Run | Yrd Mat Sub Mat Matter Collected 379 | 171 79 129 . Remotely . | . . . . Salvage Created 187 | . 136 . 51 Parts 13 | . 11 . 2 Haulers Intercepted . | . . . . Recyclers Shooed 1 | . 1 . . Parts Field Recycled . | . . . . Retrieved Matter . | . . . . Parts Self-Destructed 4 | . . 4 . Prevented . | . . . . Kills | -11 -10 -10 -8 ------- Run | Yrd Mat Sub Mat Combat Hostiles Destroyed 6 | . 5 . 1 Guns 5 | . 5 . . Cannons 1 | . . . 1 Classes Destroyed 2 | . 2 . . Swarmer 3 | . 3 . . Grunt 3 | . 2 . 1 Best Kill Streak 3 | . 3 . 1 Combat Bots Only 3 | . 3 . 1 Max Kills in Single Turn 1 | . 1 . 1 Gunslinging . | . . . . Exploded . | . . . . Melee . | . . . . Uniques/NPCs Destroyed . | . . . . Combat | -11 -10 -10 -8 -------- Run | Yrd Mat Sub Mat Hostile Shots Fired 166 | . 73 30 63 Missed 52 | . 22 11 19 Damage Taken 1685 | . 474 467 744 Core 722 | . 117 52 553 Absorbed by Shields . | . . . . Core Remaining (%) 66 | 100 . 32 . Volleys Fired 38 | . 26 4 8 Largest 2 | . 2 2 1 Hottest 75 | . 60 40 75 Shots Fired 68 | . 52 8 8 Gun 64 | . 52 8 4 Cannon 4 | . . . 4 Launcher . | . . . . Special . | . . . . Kinetic 52 | . 44 8 . Thermal 4 | . . . 4 Explosive . | . . . . Electromagnetic 12 | . 8 . 4 Robot Hit Streak 12 | . 8 10 12 Robot Miss Streak 5 | . 5 . 1 Penetration Max . | . . . . Secondary Targets 3 | . 3 . . Max Gunslinging Chain 1 | . 1 . . Shots Hit Robots 42 | . 24 8 10 Core Hits 11 | . 8 . 3 Critical Kills . | . . . . Critical Parts Destroyed . | . . . . Critical Strikes . | . . . . Melee Attacks 7 | . . . 7 Impact . | . . . . Slashing 7 | . . . 7 Piercing . | . . . . Sneak Attacks . | . . . . Combat Hostiles . | . . . . Follow-up Attacks . | . . . . Damage Inflicted 574 | . 290 46 238 Guns 369 | . 286 46 37 Cannons 75 | . . . 75 Explosions . | . . . . Melee 126 | . . . 126 Ramming 4 | . 4 . . Kinetic 274 | . 228 46 . Thermal 75 | . . . 75 Explosive . | . . . . Electromagnetic 95 | . 58 . 37 Impact . | . . . . Slashing 126 | . . . 126 Piercing . | . . . . Highest Corruption . | . . . . Average Corruption . | . . . . Corruption Purged . | . . . . Corruption Blocked . | . . . . Overload Shots . | . . . . Overflow Damage 18 | . . . 18 Projectiles . | . . . . Explosions . | . . . . Melee 18 | . . . 18 Knockbacks . | . . . . Impact . | . . . . Kinetic . | . . . . Secondary . | . . . . Self-Inflicted Damage . | . . . . Shots . | . . . . Rammed 1 | . 1 . . Targets Rammed 1 | . 1 . . Kicked . | . . . . Crushed . | . . . . Highest Temperature 59 | . 12 . 59 Average Temperature 13 | . 7 . 22 Received Heat Transfer 558 | . 144 54 360 Siege Activations . | . . . . Robots Corrupted . | . . . . Combat Hostiles . | . . . . Parts Fried . | . . . . Impact Corruptions . | . . . . Robots Melted . | . . . . Combat Hostiles . | . . . . Parts Melted . | . . . . Heat Transferred 111 | . . . 111 Parts Sabotaged . | . . . . Parts Stolen . | . . . . Parts Stripped . | . . . . Power Chain Reactions . | . . . . Alert | -11 -10 -10 -8 ------- Run | Yrd Mat Sub Mat Peak Influence 155 | . 155 . 120 Initial 10 | . . . 10 Average 67 | . 85 . 41 Maximum Alert Level . | . . . . Low Security (%) 100 | 100 100 . 100 Level 1 . | . . . . Level 2 . | . . . . Level 3 . | . . . . Level 4 . | . . . . Level 5 . | . . . . High Security . | . . . . Max Security . | . . . . Squads Dispatched 2 | . 1 . 1 Investigation 1 | . . . 1 Extermination . | . . . . Reinforcement 1 | . 1 . . Assault . | . . . . Garrison . | . . . . Intercept . | . . . . Searches Triggered . | . . . . Construction Impeded . | . . . . Haulers Reinforced . | . . . . Active Scanning Responses . | . . . . Cargo Convoy Interrupts . | . . . . Stealth | -11 -10 -10 -8 --------- Run | Yrd Mat Sub Mat Distress Signals . | . . . . Communications Jammed . | . . . . Distress Signals . | . . . . Times Spotted 27 | . 9 9 9 Peak Tracking Total 9 | . 5 7 9 Tactical Retreats 4 | . 1 . 3 Traps | -11 -10 -10 -8 ------- Run | Yrd Mat Sub Mat Traps Triggered 1 | . . . 1 Indirectly . | . . . . Trap Hack Attempts . | . . . . Triggered . | . . . . Disarmed . | . . . . Reprogrammed . | . . . . Reused . | . . . . Traps Extracted . | . . . . Installed . | . . . . Triggered . | . . . . Machines | -11 -10 -10 -8 ---------- Run | Yrd Mat Sub Mat Machines Disabled . | . . . . Max in Single Turn . | . . . . Machines Repaired . | . . . . Machines Dismantled . | . . . . Machines Sabotaged . | . . . . Overloaded Fab Kills . | . . . . Hacking | -11 -10 -10 -8 --------- Run | Yrd Mat Sub Mat Machines Accessed 1 | . . . 1 Terminals . | . . . . Fabricators . | . . . . Repair Stations . | . . . . Recycling Units 1 | . . . 1 Scanalyzers . | . . . . Garrison Access . | . . . . Total Hacks 2 | . . . 2 Successful 1 | . . . 1 Failed 1 | . . . 1 Catastrophic . | . . . . Database Lockouts . | . . . . Manual . | . . . . Terminals . | . . . . Fabricators . | . . . . Repair Stations . | . . . . Recycling Units 2 | . . . 2 Scanalyzers . | . . . . Garrison Access . | . . . . Terminal Hacks . | . . . . Fabricator Hacks . | . . . . Repair Station Hacks . | . . . . Recycling Unit Hacks 1 | . . . 1 Retrieve Components 1 | . . . 1 Scanalyzer . | . . . . Garrison Access Hacks . | . . . . Unauthorized Hacks . | . . . . Terminals . | . . . . Fabricators . | . . . . Repair Stations . | . . . . Recycling Units . | . . . . Scanalyzers . | . . . . Garrison Access . | . . . . Data Cores Recovered . | . . . . Used . | . . . . Hacking Detections 1 | . . . 1 Full Trace Events . | . . . . Feedback Events . | . . . . Feedback Blocked . | . . . . Robot Schematics Acquired . | . . . . Robots Built . | . . . . Authchips . | . . . . Time . | . . . . Total Robot Build Rating . | . . . . Part Schematics Acquired . | . . . . Parts Built . | . . . . Authchips . | . . . . Time . | . . . . Total Part Build Rating . | . . . . Parts Repaired . | . . . . Time . | . . . . Parts Recycled . | . . . . Recycled Matter . | . . . . Retrieved Matter . | . . . . Retrieved Components 3 | . . . 3 Parts Scanalyzed . | . . . . Part Schematics Acquired . | . . . . Parts Damaged . | . . . . Bothacking | -11 -10 -10 -8 ------------ Run | Yrd Mat Sub Mat Used RIF Installer . | . . . . Robots Hacked . | . . . . Non-combat . | . . . . Combat . | . . . . Robot Hacks Applied . | . . . . Relay Couplers Released . | . . . . Fabnet Peak Effective % . | . . . . Robots Rewired . | . . . . Allies Hacked . | . . . . Hacks Repelled . | . . . . Allies | -11 -10 -10 -8 -------- Run | Yrd Mat Sub Mat Total Allies . | . . . . Largest Group . | . . . . Highest-Rated Group . | . . . . Highest-Rated Ally . | . . . . Total Orders . | . . . . Ally Attacks . | . . . . Total Damage . | . . . . Kills . | . . . . Allies Corrupted . | . . . . Allies Melted . | . . . . Intel | -11 -10 -10 -8 ------- Run | Yrd Mat Sub Mat Robot Analysis Total . | . . . . Derelict Logs Recovered 2 | . . 2 . Drone Launches . | . . . . Drone Recoveries . | . . . . Exploration | -11 -10 -10 -8 ------------- Run | Yrd Mat Sub Mat Turns Passed 678 | 51 354 160 113 Spaces Moved 350 | 42 124 90 94 Core 121 | 26 . 1 94 Treads 229 | 16 124 89 . Legs . | . . . . Wheels . | . . . . Hover . | . . . . Flight . | . . . . Fastest Speed 50 | 50 160 50 50 Average Speed 133 | 94 179 158 66 Slowest Speed 320 | 160 320 160 200 Overloaded Moves . | . . . . Propulsion Burnouts . | . . . . Robots Hopped . | . . . . Cave-ins Triggered . | . . . . Exploration Rate (%) 9 | 3 12 8 13 Regions Visited 3 Branch Regions 1 Pre-discovered Areas 2 | . . 2 . Known Exits Taken . | . . . . Unknown Exits Taken 3 | 1 1 1 . Scrap Searched . | . . . . Spaces Dug . | . . . . Terrain Destroyed . | . . . . Melee . | . . . . Projectile . | . . . . AOE . | . . . . Terrain Rammed . | . . . . Walls Destroyed . | . . . . Machines Disabled . | . . . . Actions | -11 -10 -10 -8 --------- Run | Yrd Mat Sub Mat Total 484 | 53 207 100 124 Wait 52 | . 46 . 6 Move 347 | 41 123 89 94 Hop . | . . . . Pick Up 16 | 6 4 4 2 Fast Attach 4 | 1 . . 3 Attach 11 | 5 2 1 3 Detach 3 | . 1 1 1 Swap 2 | . 2 . . Drop 3 | . 2 1 . Fire 38 | . 26 4 8 Melee 7 | . . . 7 Ram . | . . . . Kick . | . . . . Crush 1 | . 1 . . Escape Stasis . | . . . . Rewire . | . . . . Trap . | . . . . Miscellaneous . | . . . . Route ------- -11/Scrapyard -10/Materials (discovered 2 exits: [*Mat] / [*Sub]) -10/Subcaves -8/Materials History --------- Turn | Location | Event 13 | -11/Scrapyard | Discovered new exit (range 16) 52 | -11/Scrapyard | Entered Materials 311 | -10/Materials | Build established: Mutant 378 | -10/Materials | Discovered new exit (range 16) 397 | -10/Materials | Discovered new exit (range 6) 406 | -10/Materials | Entered Subcaves 481 | -10/Subcaves | Learned location of Zion (-7) 520 | -10/Subcaves | Ambushed by swarm of Subdwellers 520 | -10/Subcaves | Discovered new exit (range 15) 564 | -10/Subcaves | Core integrity fell below 50% 566 | -10/Subcaves | Entered Materials 566 | -8/Materials | Evolved 4 slots: Power x1, Propulsion x2, Utility x1 575 | -8/Materials | Lost 4 allies 596 | -8/Materials | Lost 6 parts (1p2n1u2w) 651 | -8/Materials | Core integrity fell below 50% 658 | -8/Materials | Core integrity fell below 20% 679 | -8/Materials | Destroyed by G-47 Trooper with Particle Gun Last Messages --------------- Ion Engine destroyed. U-05 Engineer builds a Wall. Destroyed Lgt. Nuclear Core. Slug penetrates Wall. U-05 Engineer builds a Wall. Knocked back. Penetrated by Slug. Axe destroyed. M-13 Machinist suffers critical hit (Burn). Slug penetrates Wall. U-05 Engineer builds a Wall. Acquired Hvy. Particle Cannon. K-01 Serf collects debris. Critical hit (Burn: +37). Slug penetrates Nuclear Reactor. G-47 Trooper destroyed. Acquired Corrupted Aluminum Leg. Integrated Corrupted Aluminum Leg (+1). Complication: Energy sink damages Corrupted Aluminum Leg (-17). Map ----- +----------------------------------------------------+ | ????????????????????????????????????????# ?????? | | ????????????????????????????????????????# ?????? | | ???????????????????????????????????????? ?????? | | ????????????????????????????????????????# ?????# | | ????????????????????????????????????????# ?????# | | ????????????????????????????????????????# #????# | | ????????????????????????????????????????# #????# | | ????????????????????????????????????????# #????# | | ???????????????????????????????????? ???# #????# | | ???????????????????????????????????? ???# #????# | | ???????????????????????????????????" ???# #????# | | ???????????????????????????????????" ???# #????# | | ??????????????????????????????????? ???# #????# | | ??????????????????????????????????? ???# ###### | | ??????????????????????????????????? ???# | | ???????????????????????????????????#+#??# | | ???????????????????????????????????# #??# | | ?????????????????????????????????###+########### | | ?????????????????????????????????# #??????# | | ?????????????????????????????????# #??????# | | ??????????###????????????????????# #??????# | | ?????????## ######?###########%!! #??????# | | ???????? # ## ! #####??# | | ???????? # """ # #"""#?## | | ???????? + =""" ####+####"Y"### | | ??????????# ######## @m""" # | | ???????????????????????# h uu/ ! | | ???????????????????????# g"" # % | | ???????????????????????# """ # ########### | | ???????????????????????# S" # #?????????## | | ???????????????????????# | # #??????????# | | ???????????????????????########## #??????????" | | ????????????????????????????????# #?????????? | | ????????????????????????????????#H #??????????" | | ????????????????????????????????# #??????????# | | ???????????????????????????????? ??????????? | | ???????????????????????????????? ??????????? | | ??????????????????????????????? ??????????? | | ??????????????????????????????? #?????????? | | ???????????????????????????????# #??????????? | | ????????????????????????????????######???????????? | | ?????????????????????????????????????????????????? | | ?????????????????????????????????????????????????? | | ?????????????????????????????????????????????????? | | ?????????????????????????????????????????????????? | | ?????????????????????????????????????????????????? | | ?????????????????????????????????????????????????? | | ?????????????????????????????????????????????????? | | ?????????????????????????????????????????????????? | | ?????????????????????????????????????????????????? | +----------------------------------------------------+ Best States ------------- Heat Dissipation 31 Energy Generation 10 Energy Capacity 250 Matter Stores 284 Matter Capacity 300 Sight Range 16 Terrain Scan Density 10 Armor Coverage 800 Evasion (%) 50 Recoil Reduction 2 Item Schematics ----------------- None Robot Schematics ------------------ None Fabricated ------------ Nothing Alien Tech Used ----------------- None Achievements -------------- None Challenges ------------ None Game ------ Seed DisassembledHardlightFlamer Manual? 0 Play Time 00:13:18 Cumulative 7.1 hours Start 2025.01.19 @ 22:18:58 End 2025.01.19 @ 22:29:52 Sessions 1 Manual Loads 0 Difficulty Rogue Special Mode None Game No. 10 Rogue 10 Adventurer 0 Explorer 0 Win Type - Total 0 Types 0/0/0/0/0/0/0/0/0 Lore% 3 Gallery% 11 Achievement% 10 Wizard Run 0 Options --------- Layout 1 ASCII 1 Keyboard 0 Movement Mouse Keybinds 0 Fullscreen 1 Font 24/Smallcaps Map View 50x35 Zoom Use 0% Tactical HUD 0 Map Filters NONE Filters NONE Steam 1 RUN: 4a03b99c-a7a3-4a77-9100-d51d4a6c5234